[Event "Early-Titled-Tuesday-Blitz-February-13-2024"]
[Site "Chess.com"]
[Date "2024.02.13"]
[Round "11"]
[White "PushingpawnsNYC"]
[Black "MrChessSponge"]
[Result "1-0"]
[WhiteElo "2347"]
[BlackElo "2482"]
[TimeControl "180+1"]
[EndTime "10:10:17 PST"]
[Termination "PushingpawnsNYC won on time"]

1. e4 {[%clk 0:03:00.9]} 1... c5 {[%clk 0:02:56.1]} 2. Nc3 {[%clk 0:02:57.9]}
2... Nc6 {[%clk 0:02:53.3]} 3. Bb5 {[%clk 0:02:56.2]} 3... Nd4 {[%clk
0:02:52.1]} 4. Nf3 {[%clk 0:02:56.4]} 4... Nxb5 {[%clk 0:02:44.9]} 5. Nxb5
{[%clk 0:02:55.4]} 5... a6 {[%clk 0:02:45.5]} 6. Nc3 {[%clk 0:02:53.7]} 6... d6
{[%clk 0:02:46.1]} 7. d4 {[%clk 0:02:53.6]} 7... cxd4 {[%clk 0:02:46.3]} 8. Qxd4
{[%clk 0:02:54.4]} 8... Nf6 {[%clk 0:02:44.1]} 9. Bg5 {[%clk 0:02:54.4]} 9... e6
{[%clk 0:02:43.2]} 10. O-O-O {[%clk 0:02:51.9]} 10... Be7 {[%clk 0:02:43.3]} 11.
e5 {[%clk 0:02:52.1]} 11... dxe5 {[%clk 0:02:42.6]} 12. Qxe5 {[%clk 0:02:52.6]}
12... Bd7 {[%clk 0:02:34.4]} 13. Ne4 {[%clk 0:02:37.5]} 13... Nxe4 {[%clk
0:02:28.9]} 14. Bxe7 {[%clk 0:02:33.6]} 14... Qxe7 {[%clk 0:02:28]} 15. Qxe4
{[%clk 0:02:28.6]} 15... Bc6 {[%clk 0:02:27.2]} 16. Qf4 {[%clk 0:02:21.1]} 16...
O-O {[%clk 0:02:25.4]} 17. Ne5 {[%clk 0:02:20.2]} 17... Rac8 {[%clk 0:02:22.2]}
18. Rd3 {[%clk 0:02:15]} 18... f6 {[%clk 0:02:18.4]} 19. Nxc6 {[%clk 0:02:11.4]}
19... Rxc6 {[%clk 0:02:17.5]} 20. Rhd1 {[%clk 0:02:10.7]} 20... e5 {[%clk
0:02:15.4]} 21. Qg3 {[%clk 0:02:09.7]} 21... Rfc8 {[%clk 0:02:12.6]} 22. c3
{[%clk 0:01:47.3]} 22... R6c7 {[%clk 0:02:07.1]} 23. Qg4 {[%clk 0:01:44.9]}
23... Qf7 {[%clk 0:01:20.5]} 24. Rd7 {[%clk 0:01:31.3]} 24... Rxd7 {[%clk
0:00:45.1]} 25. Rxd7 {[%clk 0:01:28.4]} 25... f5 {[%clk 0:00:45.1]} 26. Qa4
{[%clk 0:00:42.5]} 26... Qg6 {[%clk 0:00:29.9]} 27. Qb3+ {[%clk 0:00:31]} 27...
Kh8 {[%clk 0:00:28.8]} 28. Qxb7 {[%clk 0:00:30.8]} 28... Rg8 {[%clk 0:00:25.9]}
29. h3 {[%clk 0:00:20.7]} 29... e4 {[%clk 0:00:26]} 30. g3 {[%clk 0:00:19.7]}
30... Qh6+ {[%clk 0:00:25.3]} 31. Kc2 {[%clk 0:00:16.8]} 31... Qxh3 {[%clk
0:00:25.7]} 32. Qd5 {[%clk 0:00:16.1]} 32... Qg4 {[%clk 0:00:23.3]} 33. Qd4
{[%clk 0:00:15.4]} 33... Qf3 {[%clk 0:00:22.7]} 34. a4 {[%clk 0:00:14.5]} 34...
h5 {[%clk 0:00:20.3]} 35. Rd6 {[%clk 0:00:10.6]} 35... Kh7 {[%clk 0:00:17.6]}
36. Rxa6 {[%clk 0:00:08.6]} 36... f4 {[%clk 0:00:17.5]} 37. Qb6 {[%clk
0:00:06.7]} 37... fxg3 {[%clk 0:00:15.9]} 38. Qg6+ {[%clk 0:00:06.3]} 38... Kh8
{[%clk 0:00:16]} 39. fxg3 {[%clk 0:00:06.1]} 39... e3 {[%clk 0:00:16.2]} 40. Ra5
{[%clk 0:00:05.6]} 40... Qe2+ {[%clk 0:00:12]} 41. Kb1 {[%clk 0:00:05.6]} 41...
Rf8 {[%clk 0:00:03.6]} 42. Rxh5+ {[%clk 0:00:04.5]} 42... Kg8 {[%clk 0:00:03.2]}
43. Qh7+ {[%clk 0:00:05.1]} 43... Kf7 {[%clk 0:00:02.1]} 44. Rf5+ {[%clk
0:00:05.4]} 44... Ke7 {[%clk 0:00:02.3]} 45. Qxg7+ {[%clk 0:00:05.6]} 45... Ke6
{[%clk 0:00:01.4]} 46. Qe5+ {[%clk 0:00:05.5]} 1-0

[Event "Early-Titled-Tuesday-Blitz-February-13-2024"]
[Site "Chess.com"]
[Date "2024.02.13"]
[Round "11"]
[White "Evgeny81"]
[Black "ChessLover0108"]
[Result "0-1"]
[WhiteElo "2761"]
[BlackElo "2996"]
[TimeControl "180+1"]
[EndTime "10:10:18 PST"]
[Termination "ChessLover0108 won by checkmate"]

1. d4 {[%clk 0:02:59.2]} 1... Nf6 {[%clk 0:02:56.9]} 2. Nf3 {[%clk 0:02:59.6]}
2... c5 {[%clk 0:02:57.1]} 3. d5 {[%clk 0:02:59.4]} 3... b5 {[%clk 0:02:56.9]}
4. Bg5 {[%clk 0:02:56.7]} 4... g6 {[%clk 0:02:56.5]} 5. Bxf6 {[%clk 0:02:55.8]}
5... exf6 {[%clk 0:02:57.4]} 6. e4 {[%clk 0:02:52.5]} 6... Qb6 {[%clk
0:02:56.1]} 7. a4 {[%clk 0:02:49.8]} 7... bxa4 {[%clk 0:02:53.2]} 8. Nbd2 {[%clk
0:02:48.2]} 8... Qxb2 {[%clk 0:02:37.9]} 9. Rxa4 {[%clk 0:02:47.5]} 9... d6
{[%clk 0:02:23.2]} 10. Bd3 {[%clk 0:02:43]} 10... Qb6 {[%clk 0:02:19.1]} 11. O-O
{[%clk 0:02:41.4]} 11... Bg7 {[%clk 0:02:14.7]} 12. Qe2 {[%clk 0:02:32.6]} 12...
O-O {[%clk 0:01:56.4]} 13. Rb1 {[%clk 0:02:31.5]} 13... Qc7 {[%clk 0:01:56.2]}
14. Nc4 {[%clk 0:02:28.5]} 14... Nd7 {[%clk 0:01:47.9]} 15. Qd2 {[%clk
0:02:24.1]} 15... Rb8 {[%clk 0:01:35.9]} 16. Rba1 {[%clk 0:02:13.7]} 16... a6
{[%clk 0:01:30.2]} 17. c3 {[%clk 0:02:12.3]} 17... Re8 {[%clk 0:01:24.2]} 18.
Na5 {[%clk 0:01:54]} 18... Nb6 {[%clk 0:01:18.3]} 19. R4a2 {[%clk 0:01:51.2]}
19... c4 {[%clk 0:01:17.8]} 20. Bc2 {[%clk 0:01:46.9]} 20... Bd7 {[%clk
0:01:07]} 21. Nd4 {[%clk 0:01:44.3]} 21... f5 {[%clk 0:01:07.4]} 22. exf5 {[%clk
0:01:43.2]} 22... Nxd5 {[%clk 0:01:04.4]} 23. fxg6 {[%clk 0:01:37.3]} 23... hxg6
{[%clk 0:01:05.3]} 24. h3 {[%clk 0:01:30.4]} 24... Qc5 {[%clk 0:01:01]} 25. Rd1
{[%clk 0:01:02.4]} 25... Kh7 {[%clk 0:00:53.3]} 26. Ba4 {[%clk 0:00:47.6]} 26...
Bxa4 {[%clk 0:00:27.2]} 27. Rxa4 {[%clk 0:00:48.5]} 27... Bxd4 {[%clk
0:00:18.6]} 28. cxd4 {[%clk 0:00:43.6]} 28... Qb5 {[%clk 0:00:18.9]} 29. Rxc4
{[%clk 0:00:42.9]} 29... Qb2 {[%clk 0:00:04.7]} 30. Rc2 {[%clk 0:00:42.1]} 30...
Qb4 {[%clk 0:00:03.6]} 31. Nc6 {[%clk 0:00:31.6]} 31... Qxd2 {[%clk 0:00:03.5]}
32. Rdxd2 {[%clk 0:00:32.5]} 32... Rb1+ {[%clk 0:00:02.5]} 33. Kh2 {[%clk
0:00:32.9]} 33... Ree1 {[%clk 0:00:03.4]} 34. Nd8 {[%clk 0:00:25.9]} 34... Kg7
{[%clk 0:00:02.7]} 35. Rc6 {[%clk 0:00:25.5]} 35... Nf4 {[%clk 0:00:02.4]} 36.
Rxd6 {[%clk 0:00:22.1]} 36... Ne2 {[%clk 0:00:02.8]} 37. g4 {[%clk 0:00:16.7]}
37... Rh1+ {[%clk 0:00:02.2]} 38. Kg2 {[%clk 0:00:17.1]} 38... Nf4+ {[%clk
0:00:02.6]} 39. Kf3 {[%clk 0:00:14.4]} 39... g5 {[%clk 0:00:03.5]} 40. Ke4
{[%clk 0:00:13.8]} 40... Nxh3 {[%clk 0:00:02.3]} 41. Kd5 {[%clk 0:00:12.8]}
41... Rb5+ {[%clk 0:00:01.8]} 42. Kc6 {[%clk 0:00:12.8]} 42... Rc1+ {[%clk
0:00:02.5]} 43. Kd7 {[%clk 0:00:13.2]} 43... Nf4 {[%clk 0:00:03.4]} 44. Re2
{[%clk 0:00:12.2]} 44... Nd5 {[%clk 0:00:03.7]} 45. Re7 {[%clk 0:00:11.2]} 45...
Rc7+ {[%clk 0:00:04]} 46. Ke8 {[%clk 0:00:09.7]} 46... Rxe7# {[%clk 0:00:04.9]}
0-1

[Event "Early-Titled-Tuesday-Blitz-February-13-2024"]
[Site "Chess.com"]
[Date "2024.02.13"]
[Round "11"]
[White "ValiantCeleb"]
[Black "Kotofeyca"]
[Result "0-1"]
[WhiteElo "2211"]
[BlackElo "2404"]
[TimeControl "180+1"]
[EndTime "10:10:18 PST"]
[Termination "Kotofeyca won on time"]

1. e4 {[%clk 0:02:58.8]} 1... c5 {[%clk 0:02:59.7]} 2. Nf3 {[%clk 0:02:58.6]}
2... d6 {[%clk 0:03:00]} 3. d4 {[%clk 0:02:58.8]} 3... cxd4 {[%clk 0:03:00.7]}
4. Nxd4 {[%clk 0:02:59.6]} 4... Nf6 {[%clk 0:03:01.2]} 5. Nc3 {[%clk 0:03:00]}
5... a6 {[%clk 0:03:01.7]} 6. Bc4 {[%clk 0:02:59.6]} 6... e6 {[%clk 0:03:01.6]}
7. Bb3 {[%clk 0:02:59.8]} 7... Be7 {[%clk 0:03:01.7]} 8. g4 {[%clk 0:02:59.7]}
8... h6 {[%clk 0:02:59.2]} 9. h4 {[%clk 0:02:59.3]} 9... Nc6 {[%clk 0:02:48.5]}
10. f3 {[%clk 0:02:57.8]} 10... Na5 {[%clk 0:02:39.3]} 11. Be3 {[%clk
0:02:54.6]} 11... Nxb3 {[%clk 0:02:38.6]} 12. axb3 {[%clk 0:02:54]} 12... Qc7
{[%clk 0:02:36.9]} 13. Qe2 {[%clk 0:02:46.8]} 13... e5 {[%clk 0:01:43.9]} 14.
Nf5 {[%clk 0:02:38.2]} 14... Bxf5 {[%clk 0:01:37.7]} 15. gxf5 {[%clk 0:02:37.2]}
15... O-O-O {[%clk 0:01:36.5]} 16. O-O-O {[%clk 0:02:30.5]} 16... Qc6 {[%clk
0:01:34.5]} 17. Nd5 {[%clk 0:02:15.9]} 17... Nxd5 {[%clk 0:01:32.9]} 18. Rxd5
{[%clk 0:02:15.2]} 18... g6 {[%clk 0:01:14.7]} 19. fxg6 {[%clk 0:01:46.6]} 19...
fxg6 {[%clk 0:01:15.6]} 20. Bf2 {[%clk 0:01:44.7]} 20... Rdf8 {[%clk 0:00:56.2]}
21. Qe3 {[%clk 0:01:24.4]} 21... g5 {[%clk 0:00:42]} 22. Rd3 {[%clk 0:00:42.5]}
22... Kd7 {[%clk 0:00:25.5]} 23. Kb1 {[%clk 0:00:22.8]} 23... gxh4 {[%clk
0:00:23.9]} 24. Bxh4 {[%clk 0:00:21]} 24... Rc8 {[%clk 0:00:19.8]} 25. Rc3
{[%clk 0:00:15.2]} 25... Qb5 {[%clk 0:00:16.6]} 26. Bxe7 {[%clk 0:00:13.1]}
26... Rxc3 {[%clk 0:00:16.3]} 27. bxc3 {[%clk 0:00:12.6]} 27... Kxe7 {[%clk
0:00:16.5]} 28. Rxh6 {[%clk 0:00:11.8]} 28... Qf1+ {[%clk 0:00:16.5]} 29. Kb2
{[%clk 0:00:11.4]} 29... Rxh6 {[%clk 0:00:17]} 30. Qxh6 {[%clk 0:00:11.2]} 30...
Qxf3 {[%clk 0:00:17.6]} 31. Qg7+ {[%clk 0:00:09.7]} 31... Qf7 {[%clk 0:00:17.2]}
32. Qg5+ {[%clk 0:00:09]} 32... Kd7 {[%clk 0:00:17.3]} 33. Qg4+ {[%clk
0:00:07.8]} 33... Kc7 {[%clk 0:00:17.3]} 34. Qe2 {[%clk 0:00:07]} 34... Qd7
{[%clk 0:00:17.3]} 35. Qc4+ {[%clk 0:00:06.5]} 35... Qc6 {[%clk 0:00:17.7]} 36.
Qf7+ {[%clk 0:00:06.5]} 36... Kb6 {[%clk 0:00:18.2]} 37. Qh7 {[%clk 0:00:03.7]}
37... a5 {[%clk 0:00:17.8]} 38. Qh4 {[%clk 0:00:02.6]} 38... Ka6 {[%clk
0:00:17.8]} 39. Qe1 {[%clk 0:00:02.4]} 39... b5 {[%clk 0:00:17.9]} 40. Qe2
{[%clk 0:00:02.7]} 40... Kb6 {[%clk 0:00:17.8]} 41. c4 {[%clk 0:00:02.6]} 41...
bxc4 {[%clk 0:00:17.4]} 42. Qe3+ {[%clk 0:00:02.4]} 42... Qc5 {[%clk 0:00:17.6]}
43. Qe2 {[%clk 0:00:01.6]} 43... c3+ {[%clk 0:00:17.2]} 44. Kb1 {[%clk
0:00:01.5]} 44... Qd4 {[%clk 0:00:16.8]} 45. Ka2 {[%clk 0:00:01.2]} 45... a4
{[%clk 0:00:16.2]} 0-1

[Event "Early-Titled-Tuesday-Blitz-February-13-2024"]
[Site "Chess.com"]
[Date "2024.02.13"]
[Round "11"]
[White "FREDERICKtheMATE"]
[Black "mishanick"]
[Result "0-1"]
[WhiteElo "2712"]
[BlackElo "2987"]
[TimeControl "180+1"]
[EndTime "10:10:20 PST"]
[Termination "mishanick won by checkmate"]

1. d4 {[%clk 0:03:00.9]} 1... Nf6 {[%clk 0:02:59.5]} 2. c4 {[%clk 0:03:01.5]}
2... e6 {[%clk 0:03:00.2]} 3. Nf3 {[%clk 0:03:02]} 3... d5 {[%clk 0:03:00.9]} 4.
Nc3 {[%clk 0:03:01.8]} 4... Nbd7 {[%clk 0:03:01.4]} 5. Bf4 {[%clk 0:03:01]} 5...
Bb4 {[%clk 0:03:01]} 6. e3 {[%clk 0:02:59.3]} 6... c5 {[%clk 0:02:59.5]} 7. a3
{[%clk 0:02:59.1]} 7... Bxc3+ {[%clk 0:02:59.2]} 8. bxc3 {[%clk 0:02:58.8]} 8...
Qa5 {[%clk 0:02:59.9]} 9. Qc2 {[%clk 0:02:52.9]} 9... Ne4 {[%clk 0:02:59.3]} 10.
cxd5 {[%clk 0:02:50.5]} 10... exd5 {[%clk 0:02:59.1]} 11. Rc1 {[%clk 0:02:47.3]}
11... O-O {[%clk 0:02:52.4]} 12. a4 {[%clk 0:02:41.2]} 12... Ndf6 {[%clk
0:02:49.7]} 13. Bd3 {[%clk 0:02:35.2]} 13... c4 {[%clk 0:02:43.1]} 14. Bxe4
{[%clk 0:02:31.1]} 14... Nxe4 {[%clk 0:02:44]} 15. Nd2 {[%clk 0:02:28.3]} 15...
Nxd2 {[%clk 0:02:41.1]} 16. Kxd2 {[%clk 0:02:27.9]} 16... Bd7 {[%clk 0:02:39.4]}
17. Ra1 {[%clk 0:02:27.5]} 17... Rfe8 {[%clk 0:02:37.7]} 18. Rhb1 {[%clk
0:02:24.2]} 18... b6 {[%clk 0:02:38.3]} 19. Rb4 {[%clk 0:02:19.5]} 19... Re6
{[%clk 0:02:30.7]} 20. Bg3 {[%clk 0:02:16.5]} 20... Rae8 {[%clk 0:02:30.1]} 21.
Re1 {[%clk 0:02:11.4]} 21... Qa6 {[%clk 0:02:16.7]} 22. Ra1 {[%clk 0:02:10.8]}
22... h6 {[%clk 0:02:10.2]} 23. Qa2 {[%clk 0:01:56.4]} 23... Re4 {[%clk
0:01:55.7]} 24. a5 {[%clk 0:01:54]} 24... b5 {[%clk 0:01:55.9]} 25. Qc2 {[%clk
0:01:49.6]} 25... Qg6 {[%clk 0:01:51.6]} 26. Re1 {[%clk 0:01:43.9]} 26... Bf5
{[%clk 0:01:34.3]} 27. Qd1 {[%clk 0:01:43.2]} 27... a6 {[%clk 0:01:34.5]} 28.
Kc1 {[%clk 0:01:31.3]} 28... h5 {[%clk 0:01:33.7]} 29. Rg1 {[%clk 0:01:27.5]}
29... h4 {[%clk 0:01:14.5]} 30. Bf4 {[%clk 0:01:19.9]} 30... Qf6 {[%clk
0:01:10.9]} 31. g4 {[%clk 0:01:13.2]} 31... Bg6 {[%clk 0:01:07.6]} 32. Qd2
{[%clk 0:01:10]} 32... Bh7 {[%clk 0:00:58]} 33. g5 {[%clk 0:01:03.6]} 33... Qd8
{[%clk 0:00:54.5]} 34. Be5 {[%clk 0:00:42.1]} 34... Qxa5 {[%clk 0:00:49.3]} 35.
Kb2 {[%clk 0:00:41.6]} 35... Qb6 {[%clk 0:00:47.8]} 36. Kc1 {[%clk 0:00:36.5]}
36... a5 {[%clk 0:00:45.4]} 37. Rb2 {[%clk 0:00:36.1]} 37... b4 {[%clk
0:00:45.8]} 38. cxb4 {[%clk 0:00:33]} 38... axb4 {[%clk 0:00:36.2]} 39. Qxb4
{[%clk 0:00:30.3]} 39... Qe6 {[%clk 0:00:35.7]} 40. Qd6 {[%clk 0:00:19.3]} 40...
Qf5 {[%clk 0:00:28.2]} 41. Rb8 {[%clk 0:00:17.5]} 41... Rxe5 {[%clk 0:00:28.1]}
42. g6 {[%clk 0:00:14.4]} 42... Bxg6 {[%clk 0:00:25.3]} 43. Rxg6 {[%clk
0:00:14.4]} 43... Re4 {[%clk 0:00:12.8]} 44. Rg2 {[%clk 0:00:09.5]} 44... h3
{[%clk 0:00:12.8]} 45. Rg3 {[%clk 0:00:08.5]} 45... Qxf2 {[%clk 0:00:10.9]} 46.
Rxe8+ {[%clk 0:00:08.9]} 46... Rxe8 {[%clk 0:00:10.7]} 47. Qxd5 {[%clk
0:00:08.1]} 47... Qf1+ {[%clk 0:00:10.4]} 48. Kb2 {[%clk 0:00:07.6]} 48... Rb8+
{[%clk 0:00:09.4]} 49. Kc3 {[%clk 0:00:07]} 49... Qd3# {[%clk 0:00:09.7]} 0-1

[Event "Early-Titled-Tuesday-Blitz-February-13-2024"]
[Site "Chess.com"]
[Date "2024.02.13"]
[Round "11"]
[White "Elegance_Riks"]
[Black "Yeritsyaan"]
[Result "1-0"]
[WhiteElo "2763"]
[BlackElo "2611"]
[TimeControl "180+1"]
[EndTime "10:10:20 PST"]
[Termination "Elegance_Riks won by resignation"]

1. Nf3 {[%clk 0:03:00.9]} 1... Nf6 {[%clk 0:02:56.1]} 2. c4 {[%clk 0:03:00.7]}
2... e6 {[%clk 0:02:53.6]} 3. g3 {[%clk 0:03:01]} 3... b6 {[%clk 0:02:51]} 4.
Bg2 {[%clk 0:03:01.3]} 4... Bb7 {[%clk 0:02:51.6]} 5. O-O {[%clk 0:03:01.7]}
5... c5 {[%clk 0:02:51.7]} 6. Nc3 {[%clk 0:03:01.3]} 6... Be7 {[%clk 0:02:50.5]}
7. Re1 {[%clk 0:03:01.8]} 7... d6 {[%clk 0:02:48.5]} 8. e4 {[%clk 0:03:02.1]}
8... a6 {[%clk 0:02:46.8]} 9. d4 {[%clk 0:03:02.3]} 9... cxd4 {[%clk 0:02:46.5]}
10. Nxd4 {[%clk 0:03:03.2]} 10... Qc7 {[%clk 0:02:46.5]} 11. Be3 {[%clk
0:03:02.4]} 11... Nbd7 {[%clk 0:02:46.9]} 12. Rc1 {[%clk 0:03:02.7]} 12... Rc8
{[%clk 0:02:47.5]} 13. f4 {[%clk 0:03:01.3]} 13... Qb8 {[%clk 0:02:45.6]} 14. b3
{[%clk 0:03:01.2]} 14... O-O {[%clk 0:02:43.4]} 15. Bf2 {[%clk 0:03:00.3]} 15...
Rfe8 {[%clk 0:02:39.6]} 16. g4 {[%clk 0:02:53]} 16... g6 {[%clk 0:02:34.1]} 17.
g5 {[%clk 0:02:45]} 17... Nh5 {[%clk 0:02:31.4]} 18. Qg4 {[%clk 0:02:45.3]}
18... Nc5 {[%clk 0:02:29.7]} 19. Rcd1 {[%clk 0:02:45.3]} 19... Bf8 {[%clk
0:02:09.7]} 20. Nde2 {[%clk 0:02:42.7]} 20... b5 {[%clk 0:02:05.2]} 21. b4
{[%clk 0:02:02.8]} 21... Na4 {[%clk 0:01:50.3]} 22. Nxa4 {[%clk 0:02:02.5]}
22... bxa4 {[%clk 0:01:51.2]} 23. Rc1 {[%clk 0:02:03.1]} 23... d5 {[%clk
0:01:42.1]} 24. c5 {[%clk 0:01:36.5]} 24... dxe4 {[%clk 0:01:40.3]} 25. Bd4
{[%clk 0:01:25.1]} 25... a5 {[%clk 0:01:22.7]} 26. b5 {[%clk 0:01:01.2]} 26...
Bd5 {[%clk 0:01:21.6]} 27. b6 {[%clk 0:00:58.4]} 27... Qb7 {[%clk 0:01:07.3]}
28. Ng3 {[%clk 0:00:55.7]} 28... Nxg3 {[%clk 0:01:05.3]} 29. hxg3 {[%clk
0:00:55.5]} 29... Bxa2 {[%clk 0:00:47.7]} 30. Bxe4 {[%clk 0:00:46.6]} 30... Bd5
{[%clk 0:00:48.1]} 31. Qf3 {[%clk 0:00:46]} 31... Bxe4 {[%clk 0:00:45.4]} 32.
Qxe4 {[%clk 0:00:46]} 32... Qxe4 {[%clk 0:00:39.7]} 33. Rxe4 {[%clk 0:00:45.7]}
33... Rc6 {[%clk 0:00:40.3]} 34. Bf2 {[%clk 0:00:43.7]} 34... a3 {[%clk
0:00:25.1]} 35. Ra4 {[%clk 0:00:42.1]} 35... Rb8 {[%clk 0:00:24.3]} 36. Rxa5
{[%clk 0:00:38.7]} 36... Rbxb6 {[%clk 0:00:23.4]} 37. cxb6 {[%clk 0:00:38.2]}
37... Rxc1+ {[%clk 0:00:24.3]} 38. Kg2 {[%clk 0:00:38.8]} 38... Rb1 {[%clk
0:00:21.3]} 39. Ra8 {[%clk 0:00:38.1]} 39... Rb2 {[%clk 0:00:16]} 40. Kf3 {[%clk
0:00:38]} 40... Rb3+ {[%clk 0:00:14.2]} 41. Kg4 {[%clk 0:00:35.3]} 41... Rb4
{[%clk 0:00:13]} 42. Bc5 {[%clk 0:00:27.9]} 42... h5+ {[%clk 0:00:06]} 43. gxh6
{[%clk 0:00:25.5]} 43... f5+ {[%clk 0:00:04.6]} 44. Kg5 {[%clk 0:00:25.2]} 44...
Rb3 {[%clk 0:00:01.7]} 45. Rxf8+ {[%clk 0:00:21.6]} 45... Kh7 {[%clk 0:00:02.6]}
46. Rf7+ {[%clk 0:00:21.6]} 46... Kg8 {[%clk 0:00:03.1]} 47. Kf6 {[%clk
0:00:19.4]} 1-0

[Event "Early-Titled-Tuesday-Blitz-February-13-2024"]
[Site "Chess.com"]
[Date "2024.02.13"]
[Round "11"]
[White "Kildepiotr"]
[Black "ErikRonka"]
[Result "0-1"]
[WhiteElo "2679"]
[BlackElo "2565"]
[TimeControl "180+1"]
[EndTime "10:10:23 PST"]
[Termination "ErikRonka won by resignation"]

1. Nf3 {[%clk 0:03:00.9]} 1... d5 {[%clk 0:02:59.3]} 2. g3 {[%clk 0:03:01.3]}
2... Nf6 {[%clk 0:02:57.5]} 3. Bg2 {[%clk 0:03:01.8]} 3... e6 {[%clk 0:02:58.2]}
4. O-O {[%clk 0:03:02.3]} 4... c5 {[%clk 0:02:58.9]} 5. d3 {[%clk 0:03:03.1]}
5... Nc6 {[%clk 0:02:58.8]} 6. Nbd2 {[%clk 0:03:04]} 6... Be7 {[%clk 0:02:59.3]}
7. e4 {[%clk 0:03:04.6]} 7... O-O {[%clk 0:02:59.8]} 8. Qe2 {[%clk 0:03:04.7]}
8... b5 {[%clk 0:02:52.5]} 9. e5 {[%clk 0:03:04.1]} 9... Nd7 {[%clk 0:02:51.8]}
10. c3 {[%clk 0:03:04.7]} 10... Qc7 {[%clk 0:02:49.8]} 11. Re1 {[%clk 0:03:05]}
11... Bb7 {[%clk 0:02:49.7]} 12. h4 {[%clk 0:03:03.4]} 12... Rfc8 {[%clk
0:02:49.2]} 13. h5 {[%clk 0:03:03.3]} 13... h6 {[%clk 0:02:49.2]} 14. Nf1 {[%clk
0:03:01.8]} 14... Qd8 {[%clk 0:02:48.7]} 15. g4 {[%clk 0:03:00]} 15... a5 {[%clk
0:02:44.7]} 16. Bf4 {[%clk 0:02:57.1]} 16... b4 {[%clk 0:02:45]} 17. c4 {[%clk
0:02:57.1]} 17... Nb6 {[%clk 0:02:19]} 18. b3 {[%clk 0:02:56.3]} 18... a4 {[%clk
0:02:17.5]} 19. Ne3 {[%clk 0:02:35.8]} 19... axb3 {[%clk 0:02:10.9]} 20. axb3
{[%clk 0:02:35.9]} 20... Rxa1 {[%clk 0:02:11.8]} 21. Rxa1 {[%clk 0:02:35.6]}
21... dxc4 {[%clk 0:02:06.1]} 22. dxc4 {[%clk 0:02:35.2]} 22... Nd4 {[%clk
0:02:02.9]} 23. Nxd4 {[%clk 0:02:33.9]} 23... Qxd4 {[%clk 0:02:03.8]} 24. Rd1
{[%clk 0:02:12.1]} 24... Qxf4 {[%clk 0:02:03.5]} 25. Bxb7 {[%clk 0:02:12.2]}
25... Rd8 {[%clk 0:01:41.7]} 26. Rxd8+ {[%clk 0:01:30.1]} 26... Bxd8 {[%clk
0:01:42.6]} 27. Ng2 {[%clk 0:01:23.6]} 27... Qd4 {[%clk 0:01:27.9]} 28. Kh2
{[%clk 0:01:14.4]} 28... Bc7 {[%clk 0:01:19.2]} 29. f4 {[%clk 0:01:12.8]} 29...
f6 {[%clk 0:01:08.5]} 30. Qe3 {[%clk 0:00:58.9]} 30... fxe5 {[%clk 0:01:06.2]}
31. fxe5 {[%clk 0:00:57.5]} 31... Bxe5+ {[%clk 0:01:04.7]} 32. Kh3 {[%clk
0:00:55.2]} 32... Nd7 {[%clk 0:00:35.1]} 33. Bc8 {[%clk 0:00:49]} 33... Nf8
{[%clk 0:00:24.6]} 34. Qxd4 {[%clk 0:00:44.5]} 34... Bxd4 {[%clk 0:00:23.9]} 35.
Kg3 {[%clk 0:00:38.7]} 35... Kf7 {[%clk 0:00:23.1]} 36. Kf3 {[%clk 0:00:35.6]}
36... Nh7 {[%clk 0:00:17.4]} 37. Nf4 {[%clk 0:00:27.7]} 37... Ng5+ {[%clk
0:00:17.6]} 38. Ke2 {[%clk 0:00:27.7]} 38... Kf6 {[%clk 0:00:18.2]} 39. Bb7
{[%clk 0:00:23.4]} 39... Ke5 {[%clk 0:00:17.6]} 40. Ng6+ {[%clk 0:00:23.3]}
40... Kd6 {[%clk 0:00:16]} 41. Kd3 {[%clk 0:00:21.3]} 41... Bf6 {[%clk
0:00:15.2]} 42. Nf4 {[%clk 0:00:17.3]} 42... Nf7 {[%clk 0:00:12.8]} 43. Ke2
{[%clk 0:00:15.5]} 43... Ne5 {[%clk 0:00:12.7]} 44. Bf3 {[%clk 0:00:15.5]} 44...
Bg5 {[%clk 0:00:10.4]} 45. Nd3 {[%clk 0:00:15.1]} 45... Nd7 {[%clk 0:00:09.6]}
46. Be4 {[%clk 0:00:14.7]} 46... Nf6 {[%clk 0:00:09.5]} 47. Kf3 {[%clk
0:00:15.2]} 47... Nd7 {[%clk 0:00:06.5]} 48. Bb7 {[%clk 0:00:14.3]} 48... Ne5+
{[%clk 0:00:03.7]} 49. Nxe5 {[%clk 0:00:14.3]} 49... Kxe5 {[%clk 0:00:04.6]} 50.
Bc8 {[%clk 0:00:13.9]} 50... Kd4 {[%clk 0:00:04]} 0-1